bitfinex-derivatives/quotes_ETHF0:USTF0_20250130
["timestamp","ask_amount","ask_price","bid_price","bid_amount"]
[1738234830845,0.4905,3220.6,3220.5,0.62111]
[1738234831041,1.11159,3220.6,3220.5,0.62111]
[1738234831340,1.11159,3220.6,3220.3,2.68863649]
[1738234831341,0.4905,3220.6,3220.3,2.68863649]
[1738234831537,0.62113,3220.5,3220.4,0.62111]
[1738234836147,1.1116,3220.6,3220.5,0.62111]
[1738234842853,0.4905,3220.6,3220.5,0.62111]
[1738234843048,0.62108,3220.7,3220.3,2.68863649]
[1738234843254,0.62108,3220.7,3220.6,0.62109]
[1738234845249,0.62109,3220.6,3220.5,0.6211]
[1738234845455,0.62113,3220.5,3220.4,0.62112]
[1738234846748,0.62117,3220.3,3220.2,0.62114]
[1738234851956,0.5072,3220.6,3220.1,0.5019]
[1738234852158,0.62114,3220.5,3220.4,0.62111]
[1738234853158,4.2567,3220.9,3220.3,4.24150649]
[1738234853359,0.62106,3220.8,3220.7,0.62105]
[1738234855559,0.62111,3220.5,3220.3,0.62113]
[1738234855856,1.62873,3220.4,3220.3,0.62115]
[1738234857450,1.0076,3220.4,3220.3,0.62115]
[1738234857644,3.7361,3220.9,3220.6,0.62106]
[1738234857645,0.6211,3220.7,3220.6,0.62106]
[1738234857851,1.62386,3220.8,3220.7,0.62107]
[1738234860954,1.0028,3220.8,3220.7,0.62107]
[1738234861153,3.2078,3220.9,3220.8,0.62105]
[1738234861359,3.82883,3220.9,3220.8,0.62105]
[1738234863263,3.2078,3220.9,3220.8,0.62105]
[1738234863857,1.5122,3221.3,3220.6,3.21543649]
[1738234863858,1.0009,3221.3,3221.2,0.62097]
[1738234864455,1.62185,3221.3,3221.2,0.62097]
[1738234869760,1.0009,3221.3,3220.6,3.2078]
[1738234869961,0.6211,3220.7,3220.6,0.62108]
[1738234870259,1.55267,3220.8,3220.3,0.62114]
[1738234870456,0.62115,3220.3,3220.2,3.82895]
[1738234874369,0.62122,3219.9,3219.8,0.00466222]
[1738234874964,2.20052,3219.9,3219.8,0.00466222]
[1738234879472,2.20052,3219.9,3219.8,0.62590222]
[1738234879775,2.20052,3219.9,3219.8,0.00466222]
[1738234881262,3.2078,3220.0,3219.8,0.00466222]
[1738234881473,1.5684,3220.3,3219.8,0.54726222]
[1738234881678,0.62118,3220.2,3220.1,0.62117]
[1738234881975,1.5684,3220.3,3219.8,1.60306222]
[1738234882169,0.6212,3220.1,3220.0,0.62118]
[1738234882471,0.62122,3219.9,3219.8,0.00466222]
[1738234899200,3.30985649,3219.9,3219.8,0.00466222]
[1738234901106,0.62122,3219.9,3219.8,0.00466222]
[1738234903406,3.1057,3220.4,3219.8,0.00466222]
[1738234903407,3.2078,3220.5,3219.8,3.21246222]
[1738234903601,0.62117,3220.3,3220.2,0.62115]
[1738234904704,0.62119,3220.2,3220.1,0.62117]
[1738234905704,0.62114,3220.4,3220.3,0.62113]
[1738234907806,0.62114,3220.4,3220.3,0.43806161]
[1738234911910,3.2078,3220.5,3220.4,0.62113]
[1738234911911,3.82891,3220.5,3220.4,0.62113]
[1738234912111,3.2078,3220.5,3220.4,0.62113]
[1738234912610,3.82891,3220.5,3220.4,0.62113]
[1738234913007,3.2078,3220.5,3220.4,0.62113]
[1738234913408,3.82891,3220.5,3220.4,0.62113]
[1738234913610,3.2078,3220.5,3220.4,0.62113]
[1738234914317,0.62108,3220.7,3220.6,0.62109]
[1738234914913,0.62106,3220.8,3220.7,0.62106]
[1738234916909,0.62105,3220.9,3220.8,0.62104]
[1738234917110,3.2078,3221.0,3220.5,0.515]
[1738234917309,0.62107,3220.8,3220.7,0.62106]
[1738234918511,0.62104,3220.9,3220.8,0.62103]
[1738234919113,3.2078,3221.0,3220.9,0.62103]
[1738234919507,0.621,3221.1,3220.7,3.2078]
[1738234919718,0.621,3221.1,3221.0,0.62101]
[1738234920220,0.62109,3220.7,3220.6,0.62107]
[1738234921322,0.62105,3220.9,3220.8,0.62103]
[1738234921916,1.0363,3221.0,3220.5,2.06777]
[1738234921917,0.62108,3220.8,3220.5,0.515]
[1738234922122,1.5524,3221.0,3220.5,0.515]
[1738234922323,0.62109,3220.7,3220.6,0.62108]
[1738234924218,0.62109,3220.7,3220.6,1.14108]
[1738234930529,3.10496,3221.0,3220.6,1.14108]
[1738234930530,1.5524,3221.0,3220.6,0.52]
[1738234930732,0.62106,3220.9,3220.8,0.62103]
[1738234932024,1.0363,3221.0,3220.6,0.52]
[1738234932025,1.65732,3221.0,3220.9,0.62103]
[1738234932221,3.2078,3221.1,3220.7,4.76048]
[1738234932426,3.2078,3221.1,3221.0,0.62101]
[1738234932627,1.15513,3221.5,3220.7,3.2078]
[1738234932928,1.15513,3221.5,3221.4,0.62094]
[1738234933531,0.62096,3221.4,3221.3,0.62094]
[1738234933920,1.15512,3221.5,3221.4,0.62094]
[1738234934322,0.5342,3221.5,3221.4,0.62094]
[1738234934523,1.15512,3221.5,3221.4,0.62094]
[1738234935723,3.2078,3222.0,3221.2,0.5038]
[1738234935724,0.62085,3221.9,3221.7,0.62088]
[1738234935924,4.24057649,3222.3,3221.6,3.2078]
[1738234935925,1.5686,3222.2,3221.6,3.2078]
[1738234936124,0.62082,3222.1,3222.0,0.6208]
[1738234939438,0.62083,3222.0,3221.7,1.0067]
[1738234939639,0.62083,3222.0,3221.9,0.62084]
[1738234942934,0.5187,3222.2,3221.8,2.68863649]
[1738234943134,0.5288,3222.5,3222.0,3.2078]
[1738234943329,0.5288,3222.5,3222.4,0.62074]
[1738234944838,1.14952,3222.5,3222.4,0.62074]
[1738234945335,0.5288,3222.5,3222.4,0.62074]
[1738234945644,1.14952,3222.5,3222.4,0.62074]
[1738234946235,0.5288,3222.5,3222.4,0.62074]
[1738234946440,0.62072,3222.6,3222.3,0.5188]
[1738234946730,0.5313,3222.8,3222.7,0.62069]
[1738234947238,3.2078,3222.9,3222.4,7.44827649]
[1738234947538,3.2078,3222.9,3222.8,0.62067]
[1738234949040,3.7085,3223.3,3223.2,0.62059]
[1738234949438,4.32907,3223.3,3223.2,0.62059]
[1738234949938,1.12127,3223.3,3223.2,0.62059]
[1738234950445,0.5007,3223.3,3223.2,0.62059]
[1738234950645,1.12127,3223.3,3223.2,0.62059]
[1738234958648,0.5007,3223.3,3223.0,1.0346]
[1738234958952,0.62061,3223.2,3223.1,0.6206]
[1738234960450,1.12128,3223.3,3223.2,0.62059]
[1738234963754,1.12128,3223.3,3222.9,0.00465499]
[1738234964056,0.62063,3223.0,3222.9,0.00465499]
[1738234964346,3.82843,3223.0,3222.9,0.00465499]
[1738234964646,4.32043,3223.0,3222.9,0.00465499]
[1738234965247,4.32043,3223.0,3222.9,0.00330742]
[1738234970450,3.82843,3223.0,3222.9,0.62395742]
[1738234970953,3.82843,3223.0,3222.9,0.00330742]
[1738234972256,3.83036644,3223.0,3222.9,0.00330742]
[1738234972750,3.20973644,3223.0,3222.0,0.5411]
[1738234973060,3.2078,3222.6,3222.0,0.5411]
[1738234973244,0.62074,3222.5,3222.4,0.62073]
[1738234973449,0.62077,3222.4,3222.3,0.62075]
[1738234973650,1.13427,3222.4,3222.3,0.62075]
[1738234979159,3.82854,3222.6,3222.5,0.62072]
[1738234980356,4.34264,3222.6,3222.5,0.62072]
[1738234980753,3.2078,3222.6,3222.5,0.62072]
[1738234980961,0.62067,3222.8,3222.7,0.62069]
[1738234981456,0.62066,3222.9,3222.8,0.62067]
[1738234981762,0.62257644,3223.0,3222.9,0.62065]
[1738234983451,0.62257644,3223.0,3222.5,4.287]
[1738234983452,0.00193644,3223.0,3222.5,4.287]
[1738234983749,0.6207,3222.7,3222.6,0.62068]
[1738234983951,2.04852,3222.9,3222.3,0.62074]
[1738234983952,0.62077,3222.4,3222.3,0.62074]
[1738234984150,0.62074,3222.5,3222.4,0.6207]
[1738234984347,0.62071,3222.7,3222.6,0.62067]
[1738234984550,0.62076,3222.4,3222.3,0.62074]
[1738234984749,0.62078,3222.3,3222.2,0.62076]
[1738234984951,5.29202,3222.6,3222.1,3.2078]
[1738234985163,0.62078,3222.2,3222.1,3.82859]
[1738234985360,0.62078,3222.2,3222.1,3.2078]
[1738234985655,0.62078,3222.2,3222.1,3.8286]
[1738234990255,5.29202,3222.6,3222.1,5.89643649]
[1738234990256,0.5324,3222.6,3222.1,5.89643649]
[1738234990466,0.62068,3222.8,3222.7,0.62067]
[1738234990663,0.62066,3222.9,3222.8,0.62065]
[1738234991358,3.20973644,3223.0,3222.8,0.62065]
[1738234991558,3.20973644,3223.0,3222.9,0.62065]
[1738234992965,0.00193644,3223.0,3222.9,0.62065]
[1738235004165,0.00193644,3223.0,3222.9,1.13915]
[1738235006065,0.62256644,3223.0,3222.9,1.13915]
[1738235006466,0.62068,3222.9,3222.8,0.62065]
[1738235006665,0.62069,3222.7,3222.6,0.62069]
[1738235008174,0.5183,3222.9,3222.8,0.62067]
[1738235009271,0.00193644,3223.0,3222.7,2.68863649]
[1738235009468,0.00193644,3223.0,3222.9,0.62065]
[1738235009972,0.00193644,3223.0,3222.9,1.15155]
[1738235017680,0.62256644,3223.0,3222.9,0.62065]
[1738235018579,0.6207,3222.8,3222.7,0.62066]
[1738235019986,0.6207,3222.7,3222.6,0.62069]
[1738235020193,1.1643,3222.7,3222.6,0.62069]
[1738235020688,0.62078,3222.4,3222.3,0.62074]
[1738235020888,0.62078,3222.4,3222.1,0.62078]
[1738235020889,0.6208,3222.2,3222.1,0.62078]
[1738235022086,0.5207,3222.3,3222.0,0.00465499]
[1738235022287,1.14148,3222.3,3222.2,0.62078]
[1738235023381,0.5207,3222.3,3222.2,0.62078]
[1738235024485,1.14146,3222.3,3222.2,0.62078]
[1738235024989,0.5207,3222.3,3222.2,0.62078]
[1738235025779,1.14146,3222.3,3222.2,0.62078]
[1738235027695,0.6208,3222.1,3222.0,0.00465499]
[1738235029293,0.62092,3221.6,3221.5,0.6209]
[1738235029988,4.75991,3221.9,3221.3,3.2078]
[1738235030189,0.62093,3221.5,3221.4,0.62092]
[1738235030693,0.62094,3221.4,3221.3,3.82873]
[1738235030882,1.68864,3221.4,3221.3,3.82873]
[1738235031584,1.68864,3221.4,3221.3,3.2078]
[1738235031783,0.62096,3221.3,3221.2,0.00465499]
[1738235032291,3.82149649,3221.3,3221.2,0.00465499]
[1738235033197,3.20053649,3221.3,3220.6,3.2078]
[1738235033495,0.62103,3221.0,3220.9,0.62103]
[1738235033699,3.20053649,3221.3,3220.6,3.2078]
[1738235033892,0.62104,3220.9,3220.8,0.62103]
[1738235034995,0.62106,3220.8,3220.7,0.62106]
[1738235035394,0.62104,3220.9,3220.8,0.62103]
[1738235037994,0.62107,3220.8,3220.7,0.62106]
[1738235038298,0.62107,3220.7,3220.6,3.2078]
[1738235038500,1.62487,3220.7,3220.6,3.82889]
[1738235041998,3.2078,3221.9,3220.6,3.2078]
[1738235042197,0.62083,3222.0,3221.6,0.6209]
[1738235042395,1.5266,3222.1,3221.6,0.6209]
[1738235042701,1.5266,3222.1,3221.6,3.8287]
[1738235042897,1.009,3222.1,3221.6,3.8287]
[1738235043097,0.4989,3222.6,3221.6,3.8287]
[1738235043289,1.4878,3222.6,3222.5,0.62072]
[1738235045299,0.9889,3222.6,3222.5,0.62072]
[1738235046696,0.4982,3222.6,3222.5,0.62072]
[1738235046890,3.2078,3222.7,3222.6,0.6207]
[1738235050796,3.2078,3222.7,3222.2,1.55658499]
[1738235051000,3.8285,3222.7,3222.6,0.6207]
[1738235052804,3.82849,3222.7,3222.6,0.6207]
[1738235053003,3.2078,3222.7,3222.6,0.6207]
[1738235053903,3.82849,3222.7,3222.6,0.6207]
[1738235055409,0.62076,3222.3,3222.2,0.00465499]
[1738235055711,0.62076,3222.3,3222.2,0.62543499]
[1738235056006,0.62074,3222.5,3222.4,0.62074]
[1738235056203,1.022,3222.5,3222.2,0.00465499]
[1738235056401,0.62076,3222.3,3222.2,0.62542499]
[1738235056608,0.62075,3222.4,3222.3,0.62075]
[1738235057707,1.022,3222.5,3222.2,0.00465499]
[1738235057902,3.2078,3222.7,3222.6,0.6207]
[1738235058906,0.62076,3222.3,3222.2,0.62542499]
[1738235061006,4.75954,3222.7,3222.2,0.00465499]
[1738235061609,0.62076,3222.3,3222.2,0.62542499]
[1738235062708,0.62076,3222.3,3222.2,0.00465499]
[1738235064916,3.82856,3222.3,3222.2,0.00465499]
[1738235066416,8.82856,3222.3,3222.2,0.00465499]
[1738235066615,8.82856,3222.3,3221.4,5.89643649]
[1738235066616,0.62094,3221.5,3221.4,0.62093]
[1738235066817,0.62097,3221.3,3221.2,0.62097]
[1738235068518,1.0461,3221.4,3221.1,0.5384]
[1738235068717,0.62097,3221.2,3221.1,1.15938]
[1738235068918,1.0461,3221.4,3221.1,0.5384]
[1738235069118,0.62096,3221.3,3221.2,0.62095]
[1738235069621,1.13177,3221.4,3221.3,0.62095]
[1738235069810,0.62097,3221.4,3221.3,0.62095]
[1738235071321,0.62097,3221.4,3221.1,3.22703649]
[1738235071322,0.62097,3221.2,3221.1,1.15939]
[1738235071516,0.5004,3221.3,3220.9,0.00465499]
[1738235071820,0.62101,3221.0,3220.9,0.62566499]
[1738235072030,0.62097,3221.2,3221.1,0.62098]
[1738235073813,0.50505499,3221.3,3220.9,0.00465499]
[1738235074013,0.62101,3221.0,3220.9,0.00465499]
[1738235078228,0.62101,3221.0,3220.9,0.62568499]
[1738235080433,3.71285499,3221.3,3220.9,0.00465499]
[1738235080731,0.00465499,3221.3,3221.2,0.62097]
[1738235080930,0.62560499,3221.3,3221.2,1.65917]
[1738235081126,3.2078,3222.3,3221.8,0.62086]
[1738235081327,0.62081,3222.1,3222.0,0.6208]
[1738235083034,0.62082,3222.0,3221.9,3.30946649]
[1738235083733,3.2078,3222.3,3221.9,2.68863649]
[1738235083924,0.62082,3222.0,3221.6,4.24086649]
[1738235084129,0.62082,3222.0,3221.9,0.62084]
[1738235085535,0.4913,3222.2,3221.7,0.4995]
[1738235085735,0.62086,3221.9,3221.8,0.62085]
[1738235087835,0.5059,3222.1,3221.4,3.2078]
[1738235088027,0.62092,3221.6,3221.5,0.6209]
[1738235088231,0.62092,3221.5,3221.3,3.30957649]
[1738235088437,0.62094,3221.4,3221.3,3.30957649]
[1738235089036,0.62094,3221.4,3221.3,0.62094]
[1738235089528,0.4928,3221.5,3221.0,3.2078]
[1738235089729,0.4928,3221.5,3220.7,0.5008]
[1738235089730,0.62101,3221.0,3220.7,0.5008]
[1738235089926,0.62098,3221.3,3221.2,0.62096]
[1738235090929,3.2078,3221.4,3220.8,0.4955]
[1738235091130,0.62101,3221.0,3220.9,0.62567499]
[1738235091939,0.62101,3221.0,3220.9,0.00465499]
[1738235092132,0.62101,3221.0,3220.9,0.62568499]
[1738235094038,1.0536,3221.3,3220.9,0.62568499]
[1738235094340,0.621,3221.1,3221.0,0.62099]
[1738235095537,0.62540499,3222.4,3222.3,0.62076]
[1738235095833,0.62540499,3222.4,3221.0,14.56007298]
[1738235095834,0.00465499,3222.4,3222.0,5.89643649]
[1738235096040,0.62078,3222.3,3222.2,0.62078]
[1738235096840,0.62540499,3222.4,3222.3,0.62076]
[1738235098341,0.62540499,3222.4,3222.0,5.89643649]
[1738235098342,0.62077,3222.3,3222.2,0.62077]
[1738235099142,0.00465499,3222.4,3222.3,0.62076]
[1738235099343,0.00465499,3222.4,3222.0,5.89643649]
[1738235099640,0.62540499,3222.4,3222.3,0.62076]
[1738235099830,0.00465499,3222.4,3222.0,5.89643649]
[1738235100037,0.62076,3222.3,3222.2,0.62077]
[1738235101835,0.6208,3222.2,3222.1,0.6208]
[1738235102035,0.62076,3222.3,3221.9,0.62084]
[1738235102348,0.62084,3222.0,3221.9,0.62084]
[1738235105336,0.62084,3221.9,3221.8,1.65915]
[1738235108841,1.55203,3222.1,3221.4,2.68863649]
[1738235109043,0.62089,3221.7,3221.6,0.62087]
[1738235109342,0.62088,3221.8,3221.7,0.62087]
[1738235109544,0.62089,3221.7,3221.6,0.62089]
[1738235109938,0.62087,3221.8,3221.7,0.62086]
[1738235110140,1.55201,3222.2,3221.4,3.18283649]
[1738235110334,0.62085,3221.9,3221.8,0.62084]
[1738235110733,1.55201,3222.2,3221.4,4.73515649]
[1738235110938,0.62087,3221.8,3221.7,0.62087]
[1738235112451,4.236,3222.3,3221.4,3.18283649]
[1738235112640,0.62091,3221.6,3221.5,0.62089]
[1738235112845,1.55212,3221.9,3221.3,0.5245]
[1738235113043,0.62094,3221.5,3221.4,0.62093]
[1738235113242,1.55212,3221.9,3221.5,0.6209]
[1738235113243,0.62091,3221.6,3221.5,0.6209]
[1738235114744,0.5256,3221.8,3221.3,0.5245]
[1738235114745,0.5256,3221.8,3221.4,3.2078]
[1738235115045,0.62091,3221.6,3221.5,0.62089]
[1738235115740,0.5256,3221.8,3221.4,3.2078]
[1738235115941,0.62092,3221.5,3221.4,3.82872]
[1738235117544,0.62092,3221.5,3221.4,3.2078]
[1738235117844,0.62092,3221.5,3221.0,4.3368]
[1738235117845,0.62099,3221.1,3221.0,4.3368]
[1738235118345,0.62099,3221.1,3221.0,3.7158]
[1738235119050,0.62099,3221.1,3221.0,3.2078]
[1738235120044,0.62101,3221.0,3220.9,0.00465499]
[1738235122547,0.62101,3221.0,3220.9,0.00330559]
[1738235126047,1.55263,3220.9,3220.4,0.62112]
[1738235126242,0.62113,3220.5,3220.4,0.62112]
[1738235126647,1.55263,3220.9,3220.5,0.62111]
[1738235126852,0.62111,3220.6,3220.5,0.62111]
[1738235127545,0.00465499,3221.0,3220.4,0.00465499]
[1738235127846,0.62111,3220.5,3220.4,0.00465499]
[1738235131552,3.30974649,3220.5,3220.4,0.00465499]
[1738235132543,4.29174649,3220.5,3220.4,0.00465499]
[1738235133453,0.62126,3219.7,3219.6,3.82908]
[1738235134746,1.55291,3220.3,3219.6,3.2078]
[1738235135048,0.62122,3220.0,3219.9,0.6212]
[1738235135248,0.6212,3220.1,3220.0,0.6212]
[1738235135453,0.5194,3220.4,3220.0,3.2078]
[1738235135651,0.62112,3220.5,3220.4,0.62112]
[1738235136446,0.62113,3220.4,3220.3,1.16184]
[1738235138152,0.62112,3220.5,3220.4,0.62112]
[1738235138655,0.00465499,3221.0,3220.3,0.5407]
[1738235138953,0.62106,3220.8,3220.6,0.62109]
[1738235139554,3.82887,3220.7,3220.6,0.62109]
[1738235142061,3.82887,3220.7,3220.3,0.5407]
[1738235142062,3.2078,3220.7,3220.3,0.5407]
[1738235142254,0.62113,3220.4,3220.3,0.5407]
[1738235143056,0.62113,3220.4,3220.3,1.16185]
[1738235143957,1.5518,3220.6,3219.9,2.68863649]
[1738235144146,0.6212,3220.1,3220.0,1.13469]
[1738235144555,0.6212,3220.1,3220.0,0.5135]
[1738235145657,1.55279,3220.5,3220.0,0.5135]
[1738235145857,0.62118,3220.3,3220.2,0.62115]
[1738235147556,0.5259,3220.6,3220.0,4.2286]
[1738235147764,0.62116,3220.4,3220.3,0.62113]
[1738235151753,0.62117,3220.3,3220.2,0.62116]
[1738235152660,3.2078,3220.7,3220.0,4.2286]
[1738235152862,0.62115,3220.4,3220.3,0.62114]
[1738235153262,3.2078,3220.7,3220.0,4.2286]
[1738235154158,3.2078,3220.7,3220.1,0.5286]
[1738235157263,3.2078,3220.7,3218.7,5.20238798]
[1738235157264,3.2078,3220.3,3219.6,3.2078]
[1738235157460,1.5644,3220.2,3219.6,3.2078]
[1738235159758,1.5644,3220.2,3219.7,0.62124]
[1738235159759,2.17407,3220.1,3219.7,0.62124]
[1738235159960,0.62126,3219.8,3219.7,0.62125]
[1738235161067,0.62126,3219.8,3219.6,3.2078]
[1738235161068,0.62124,3219.9,3219.8,0.62122]
[1738235163561,1.5644,3220.2,3219.6,3.2078]
[1738235163758,4.76047,3220.8,3220.0,3.2078]
[1738235163963,0.62111,3220.6,3220.5,0.62109]
[1738235164164,0.5329,3220.7,3220.1,0.9911]
[1738235164479,0.62113,3220.5,3220.4,0.62112]
[1738235169769,0.62115,3220.4,3220.3,0.62113]
[1738235171074,0.62109,3220.6,3220.5,0.62109]
[1738235171373,0.62113,3220.5,3220.4,0.62112]
[1738235173476,0.5329,3220.7,3220.1,1.5045]
[1738235173666,0.62116,3220.4,3220.3,0.62114]
[1738235176177,0.5329,3220.7,3220.1,0.9911]
[1738235176378,0.62112,3220.5,3220.4,0.62111]
[1738235178073,2.08559,3220.7,3220.1,0.9911]
[1738235178275,0.62117,3220.3,3220.2,0.62117]
[1738235179571,0.5329,3220.7,3220.0,3.2078]
[1738235179880,0.62119,3220.1,3220.0,3.2078]
[1738235180577,0.62126,3219.8,3219.7,0.62126]
[1738235181168,0.62126,3219.7,3219.6,3.2078]
[1738235181477,1.11886,3219.7,3219.6,3.2078]
[1738235183277,0.4976,3219.7,3219.3,0.00465499]
[1738235183472,0.62132,3219.4,3219.3,0.00465499]
[1738235184573,6.80712,3219.4,3219.3,0.00465499]
[1738235185172,3.82912,3219.4,3219.3,0.00465499]
[1738235194272,3.82912,3219.4,3218.6,3.2078]
[1738235194273,8.2078,3219.4,3218.6,3.2078]
[1738235194576,3.75683649,3219.6,3218.6,3.2078]
[1738235194577,0.62146,3218.7,3218.6,3.2078]
[1738235194781,0.62144,3218.8,3218.6,3.82926]
[1738235194978,0.62142,3218.9,3218.7,0.62145]
[1738235195286,0.62145,3218.8,3218.7,0.62145]
[1738235195680,0.62146,3218.7,3218.6,3.82927]
[1738235195881,0.62146,3218.7,3218.6,3.2078]
[1738235196872,0.62146,3218.7,3218.6,3.7064]
[1738235197586,0.62146,3218.7,3218.6,3.2078]
[1738235203588,0.62146,3218.7,3218.6,3.82928]
[1738235204389,0.62146,3218.7,3218.6,3.2078]
[1738235206888,0.62146,3218.7,3218.6,3.82928]
[1738235207589,0.62145,3218.8,3218.7,0.62145]
[1738235207788,0.62146,3218.7,3218.6,3.2078]
[1738235208892,0.62146,3218.7,3218.6,3.82928]
[1738235209389,0.62146,3218.7,3218.6,3.2078]
[1738235210895,0.62146,3218.7,3218.6,3.82928]
[1738235211190,0.62146,3218.7,3218.6,3.2078]
[1738235212890,0.62146,3218.7,3218.6,3.82928]
[1738235213787,0.62146,3218.7,3218.6,3.2078]
[1738235214593,0.62146,3218.7,3218.6,3.82928]
[1738235216891,0.62146,3218.7,3218.6,3.2078]
[1738235217487,0.62146,3218.7,3218.6,3.82928]
[1738235217891,0.62146,3218.7,3218.6,3.2078]
[1738235218892,0.62146,3218.7,3218.6,3.82928]
[1738235220797,1.55355,3219.0,3218.9,0.6214]
[1738235220798,0.62142,3219.0,3218.9,0.6214]
[1738235221002,0.62142,3219.0,3218.9,0.62141]
[1738235221299,0.62144,3218.9,3218.8,0.62143]
[1738235221500,0.62144,3218.9,3218.8,1.16153]
[1738235231112,0.62142,3219.0,3218.9,0.6214]
[1738235231803,0.52135499,3219.1,3218.8,0.5401]
[1738235232007,0.62142,3218.9,3218.8,1.16153]
[1738235237211,0.62142,3218.9,3218.8,0.5401]
[1738235239313,2.07481499,3219.1,3218.7,1.2748595]
[1738235239610,0.62146,3218.7,3218.6,3.2078]
[1738235240509,0.62146,3218.7,3218.6,3.82928]
[1738235241313,0.62146,3218.7,3218.6,3.2078]
[1738235243817,1.2748595,3218.8,3218.5,0.00465499]
[1738235244112,12.1651795,3219.0,3217.5,1.12768]
[1738235244113,0.62167,3217.6,3217.5,1.12768]
[1738235244316,1.2748595,3218.0,3217.5,0.506]
[1738235244611,0.62163,3217.9,3217.8,0.62162]
[1738235244921,0.62162,3217.9,3217.8,0.62163]
[1738235245115,0.62158,3218.1,3217.7,4.2328]
[1738235245416,0.6216,3218.0,3217.8,0.62163]
[1738235245614,0.6216,3218.0,3217.9,0.62161]
[1738235245820,0.62159,3218.1,3217.7,4.2328]
[1738235246114,0.62158,3218.1,3217.9,0.6216]
[1738235246418,1.2748595,3218.2,3218.1,0.62157]
[1738235246610,1.8964095,3218.2,3218.1,0.62157]
[1738235247009,0.62155,3218.2,3218.1,0.62157]
[1738235247414,0.62155,3218.2,3218.1,3.82937]
[1738235247910,1.2748595,3218.4,3218.1,3.2078]
[1738235248215,2.9244395,3218.6,3218.5,0.6215]
[1738235248514,0.62151,3218.5,3218.4,0.6215]
[1738235248915,0.6215,3218.5,3218.4,0.6215]
[1738235249716,2.9244495,3218.6,3218.5,0.6215]
[1738235249916,1.7785595,3218.6,3218.5,0.6215]
[1738235250621,1.8962995,3218.8,3218.7,0.62146]
[1738235250917,1.2748595,3218.8,3218.4,1.2748595]
[1738235251217,1.2748595,3218.8,3218.3,1.0226]
[1738235251218,0.62146,3218.7,3218.6,0.62146]
[1738235251519,1.8963095,3218.8,3218.7,0.62146]
[1738235251717,1.2748595,3218.8,3218.7,0.62146]
[1738235251915,1.8962995,3218.8,3218.7,0.62146]
[1738235254528,1.2748595,3218.8,3218.3,2.57642]
[1738235254827,1.8963295,3218.7,3218.6,0.62147]
[1738235258122,1.2748595,3218.7,3218.3,0.5161]
[1738235258327,0.62151,3218.4,3218.3,0.5161]
[1738235258521,0.62151,3218.4,3218.3,1.13763]
[1738235258722,1.15621,3218.4,3218.3,1.13763]
[1738235260438,0.62151,3218.5,3218.4,0.62149]
[1738235261132,1.2748595,3218.7,3218.3,0.5161]
[1738235261327,0.62145,3218.8,3218.7,0.62144]
[1738235261640,1.8962895,3218.9,3218.8,0.62144]
[1738235261838,4.8742895,3218.9,3218.8,0.62144]
[1738235262339,4.8742895,3218.9,3218.8,0.41502902]
[1738235270248,4.8742895,3218.9,3218.8,0.279386]
[1738235273145,0.62145,3218.8,3218.7,0.62144]
[1738235275949,4.2528595,3218.9,3218.5,0.5129]
[1738235276152,0.62151,3218.4,3218.3,4.34542]
[1738235276351,1.8963695,3218.4,3218.3,4.34542]
[1738235278450,0.62151,3218.5,3218.3,3.7239]
[1738235278646,0.62151,3218.5,3218.4,0.62151]
[1738235278949,0.62151,3218.5,3218.4,1.12471]
[1738235279248,3.59951,3218.5,3218.4,1.12471]
[1738235283051,3.59951,3218.5,3218.4,0.76100915]
[1738235283449,2.978,3218.5,3218.4,0.76100915]
[1738235283647,2.978,3218.5,3218.4,2.03586865]
[1738235284357,2.978,3218.5,3218.4,0.76100915]
[1738235285263,0.62147,3218.7,3218.6,0.62148]
[1738235287659,1.2748595,3218.8,3218.4,2.05698]
[1738235287963,1.8963095,3218.8,3218.7,0.62146]
[1738235288263,4.8742595,3219.0,3218.9,0.62142]
[1738235291164,1.8962595,3219.0,3218.9,0.42637774]
[1738235296568,0.50485499,3219.1,3219.0,0.6214]
[1738235296867,1.12623499,3219.1,3219.0,0.6214]
[1738235298277,0.50485499,3219.1,3219.0,0.6214]
[1738235298572,1.12623499,3219.1,3219.0,0.6214]
[1738235301986,0.00465499,3219.1,3219.0,0.6214]
[1738235302170,0.62603499,3219.1,3219.0,0.6214]
[1738235302471,0.00465499,3219.1,3219.0,1.8962595]
[1738235302679,3.6993,3219.8,3219.0,2.549719]
[1738235302871,0.4915,3219.8,3219.7,0.62126]
[1738235303271,0.4915,3219.8,3219.7,1.13826]
[1738235304574,0.5065,3219.9,3219.7,0.517]
[1738235304777,1.0478,3219.9,3219.7,0.517]
[1738235305076,1.66903,3219.9,3219.8,0.62124]
[1738235305479,0.62584499,3220.1,3219.9,0.62122]
[1738235305779,0.62584499,3220.1,3220.0,0.62121]
[1738235306377,0.62121,3220.0,3219.9,0.62122]
[1738235306679,0.62584499,3220.1,3220.0,0.62121]
[1738235307473,0.00465499,3220.1,3220.0,3.82901]
[1738235309580,0.00465499,3220.1,3220.0,4.34741]
[1738235311083,0.62584499,3220.1,3220.0,4.34741]
[1738235311274,0.00465499,3220.1,3220.0,4.34741]
[1738235312681,0.00465499,3220.1,3220.0,7.03857115]
[1738235314173,0.00465499,3220.1,3220.0,4.34741]
[1738235314578,0.62584499,3220.1,3220.0,3.82901]
[1738235317476,0.00465499,3220.1,3220.0,3.82901]
[1738235319589,0.00465499,3220.1,3220.0,6.52017115]
[1738235321587,0.00465499,3220.1,3220.0,11.52017115]
[1738235321787,3.2078,3220.7,3220.6,0.62109]
[1738235323193,3.82887,3220.7,3220.6,0.62109]
[1738235325089,3.82887,3220.7,3220.6,1.14609]